fUST/lending_fUST_20260421
["ID","MTS","AMOUNT","RATE_DAILY","PERIOD"]
[420920065,1776727849286,-500.0,0.00013972,2]
[420920066,1776727849295,-500.0,0.00013972,2]
[420920067,1776727849304,-755.07,0.00013972,2]
[420920068,1776727849313,-500.0,0.00013972,2]
[420920069,1776727849323,-500.0,0.00013972,2]
[420920070,1776727849332,-500.0,0.00013972,2]
[420920071,1776727849341,-1858.23,0.00013972,2]
[420920072,1776727849350,-736.57,0.00013972,2]
[420920073,1776727849359,-500.0,0.00013972,2]
[420920074,1776727849368,-683.84,0.00013972,2]
[420920075,1776727849377,-500.0,0.00013972,2]
[420920076,1776727849386,-3391.67,0.00013972,2]
[420920077,1776727849395,-2845.63,0.00013972,2]
[420920078,1776727849404,-942.56,0.00013972,2]
[420920080,1776727849413,-500.0,0.00013972,2]
[420920081,1776727849422,-500.0,0.00013972,2]
[420920082,1776727849431,-500.0,0.00013972,2]
[420920084,1776727849440,-931.87,0.00013972,2]
[420920086,1776727849449,-1468.68,0.00013972,2]
[420920088,1776727849458,-1208.98,0.00013972,2]
[420920090,1776727849467,-909.52,0.00013972,2]
[420920092,1776727849476,-500.0,0.00013972,2]
[420920094,1776727849485,-500.0,0.00013972,2]
[420920096,1776727849493,-500.0,0.00013972,2]
[420920098,1776727849502,-634.37,0.00013972,2]
[420920100,1776727849511,-500.0,0.00013972,2]
[420920102,1776727849520,-500.0,0.00013972,2]
[420920104,1776727849530,-1393.62,0.00013972,2]
[420920106,1776727849538,-1631.25,0.00013972,2]
[420920108,1776727849547,-1034.79,0.00013972,2]
[420920110,1776727849556,-5412.07,0.00013972,2]
[420920111,1776727849565,-1333.09,0.00013972,2]
[420920113,1776727849574,-500.0,0.00013972,2]
[420920115,1776727849583,-500.0,0.00013972,2]
[420920117,1776727849592,-1055.62,0.00013972,2]
[420920120,1776727849601,-2738.88,0.00013972,2]
[420920122,1776727849611,-500.0,0.00013972,2]
[420920124,1776727849620,-2731.89,0.00013972,2]
[420920125,1776727849629,-500.0,0.00013972,2]
[420920127,1776727849638,-2600.62,0.00013972,2]
[420920129,1776727849647,-2254.44,0.00013972,2]
[420920131,1776727849656,-500.0,0.00013972,2]
[420920134,1776727849666,-2088.86,0.00013972,2]
[420920135,1776727849676,-3845.39,0.00013972,2]
[420920138,1776727849686,-750.4,0.00013972,2]
[420920139,1776727849696,-2809.13,0.00013972,2]
[420920141,1776727849705,-500.0,0.00013972,2]
[420920143,1776727849714,-5431.02,0.00013972,2]
[420920145,1776727849724,-500.0,0.00013972,2]
[420920147,1776727849733,-500.0,0.00013972,2]
[420920149,1776727849742,-500.0,0.00013972,2]
[420920151,1776727849751,-844.1,0.00013972,2]
[420920153,1776727849760,-764.76,0.00013972,2]
[420920155,1776727849769,-500.0,0.00013972,2]
[420920157,1776727849778,-628.08,0.00013972,2]
[420920159,1776727849787,-2080.85,0.00013972,2]
[420920161,1776727849796,-5859.1,0.00013972,2]
[420920163,1776727849805,-2269.79,0.00013972,2]
[420920165,1776727849814,-500.0,0.00013972,2]
[420920167,1776727849823,-500.0,0.00013972,2]
[420920169,1776727849832,-500.0,0.00013972,2]
[420920170,1776727849841,-4245.16,0.00013972,2]
[420920172,1776727849850,-580.43571272,0.00013972,2]
[420920174,1776727849860,-701.39,0.00013972,2]
[420920176,1776727849869,-915.33,0.00013972,2]
[420920178,1776727849878,-2092.51,0.00013972,2]
[420920180,1776727849888,-3796.29,0.00013972,2]
[420920183,1776727849897,-500.0,0.00013972,2]
[420920185,1776727849907,-23822.54,0.00013972,2]
[420920187,1776727849916,-500.0,0.00013972,2]
[420920189,1776727849926,-1937.17,0.00013972,2]
[420920191,1776727849935,-528.23,0.00013972,2]
[420920193,1776727849944,-939.33,0.00013972,2]
[420920195,1776727849953,-519.24,0.00013972,2]
[420920197,1776727849962,-500.0,0.00013972,2]
[420920199,1776727849972,-500.0,0.00013972,2]
[420920201,1776727849982,-1690.89,0.00013972,2]
[420920203,1776727849991,-3778.88,0.00013972,2]
[420920205,1776727850000,-1209.507,0.00013972,2]
[420920207,1776727850009,-150.32309376,0.00013972,2]
[420920209,1776727850018,-150.0,0.00013973,2]
[420920211,1776727850027,-500.0,0.00013973,2]
[420920213,1776727850036,-500.0,0.00013973,2]
[420920215,1776727850045,-500.0,0.00013973,2]
[420920216,1776727850054,-500.0,0.00013973,2]
[420920218,1776727850063,-500.0,0.00013973,2]
[420920220,1776727850073,-1190.0,0.00013973,2]
[420920222,1776727850082,-1906.85685527,0.00014,2]
[420920224,1776727850091,-420.03335561,0.00014,2]
[420920226,1776727850100,-821.0,0.00014007,2]
[420920228,1776727850109,-155.0,0.00014014,2]
[420920230,1776727850118,-821.0,0.00014066,2]
[420920232,1776727850128,-155.0,0.00014067,2]
[420920234,1776727850137,-2597.0,0.00014068,2]
[420920236,1776727850145,-821.0,0.00014077,2]
[420920238,1776727850155,-488.168465,0.00014096,7]
[420920240,1776727850163,-885.219903,0.00014096,2]
[420920242,1776727850172,-2507.016002,0.00014096,7]
[420920244,1776727850181,-617.138478,0.00014096,7]
[420920246,1776727850189,-1906.85685527,0.000141,2]
[420920248,1776727850198,-200.0,0.0001411,2]
[420920250,1776727850207,-155.0,0.00014119,2]
[420920252,1776727850216,-821.0,0.00014134,2]
[420920254,1776727850225,-2597.0,0.00014138,2]
[420920256,1776727850234,-2597.0,0.00014149,2]
[420920258,1776727850242,-150.32309376,0.00014154,7]
[420920260,1776727850251,-2597.0,0.00014157,2]
[420920262,1776727850259,-155.0,0.00014172,2]
[420920264,1776727850269,-2597.0,0.00014199,2]
[420920266,1776727850278,-2597.0,0.00014201,2]
[420920268,1776727850287,-576.18084303,0.00014221,2]
[420920270,1776727850295,-155.0,0.00014225,2]
[420920272,1776727850304,-500.0,0.00014241,2]
[420920274,1776727850313,-500.0,0.00014241,2]
[420920276,1776727850322,-455.0,0.00014242,2]
[420920278,1776727850331,-160.0,0.00014245,2]
[420920280,1776727850340,-200.0,0.00014245,2]
[420920282,1776727850349,-150.32309376,0.00014246,2]
[420920284,1776727850358,-500.0,0.00014246,2]
[420920286,1776727850368,-500.0,0.00014246,2]
[420920288,1776727850376,-500.0,0.00014246,2]
[420920290,1776727850386,-500.0,0.00014246,2]
[420920292,1776727850396,-500.0,0.00014246,2]
[420920293,1776727850405,-500.0,0.00014246,2]
[420920295,1776727850414,-500.0,0.00014246,2]
[420920297,1776727850423,-500.0,0.00014246,2]
[420920299,1776727850432,-550.2,0.00014246,2]
[420920301,1776727850441,-500.0,0.00014246,2]
[420920303,1776727850450,-504.14,0.00014246,2]
[420920306,1776727850461,-500.0,0.00014246,2]
[420920307,1776727850470,-555.17,0.00014246,2]
[420920309,1776727850479,-500.0,0.00014246,2]
[420920311,1776727850488,-500.0,0.00014246,2]
[420920313,1776727850497,-500.0,0.00014246,2]
[420920315,1776727850506,-500.0,0.00014246,2]
[420920318,1776727850516,-500.0,0.00014246,2]
[420920320,1776727850526,-566.33,0.00014246,2]
[420920322,1776727850535,-500.0,0.00014246,2]
[420920324,1776727850544,-500.0,0.00014246,2]
[420920326,1776727850553,-500.0,0.00014246,2]
[420920328,1776727850562,-700.65,0.00014246,2]
[420920330,1776727850572,-663.16,0.00014246,2]
[420920332,1776727850580,-500.0,0.00014246,2]
[420920334,1776727850590,-500.0,0.00014246,2]
[420920336,1776727850599,-500.0,0.00014246,2]
[420920338,1776727850608,-1395.49,0.00014246,2]
[420920340,1776727850617,-500.0,0.00014246,2]
[420920341,1776727850626,-500.0,0.00014246,2]
[420920344,1776727850635,-198.05439855,0.00014246,2]
[420920346,1776727850645,-500.0,0.00014246,2]
[420920347,1776727850654,-500.0,0.00014246,2]
[420920349,1776727850663,-915.61,0.00014246,2]
[420920351,1776727850672,-500.0,0.00014246,2]
[420920353,1776727850681,-500.0,0.00014246,2]
[420920355,1776727850690,-500.0,0.00014246,2]
[420920357,1776727850700,-500.0,0.00014246,2]
[420920359,1776727850709,-500.0,0.00014246,2]
[420920361,1776727850718,-500.0,0.00014246,2]
[420920363,1776727850727,-500.0,0.00014246,2]
[420920365,1776727850736,-500.0,0.00014246,2]
[420920367,1776727850745,-500.0,0.00014246,2]
[420920369,1776727850754,-500.0,0.00014246,2]
[420920371,1776727850764,-500.0,0.00014246,2]
[420920373,1776727850774,-1554.06,0.00014246,2]
[420920375,1776727850784,-500.0,0.00014246,2]
[420920377,1776727850793,-500.0,0.00014246,2]
[420920379,1776727850802,-582.68,0.00014246,2]
[420920381,1776727850811,-500.0,0.00014246,2]
[420920383,1776727850821,-5611.23,0.00014246,2]
[420920385,1776727850830,-500.0,0.00014246,2]
[420920387,1776727850839,-500.0,0.00014246,2]
[420920389,1776727850848,-500.0,0.00014246,2]
[420920391,1776727850856,-8913.81,0.00014246,2]
[420920393,1776727850865,-500.0,0.00014246,2]
[420920395,1776727850874,-500.0,0.00014246,2]
[420920397,1776727850883,-500.0,0.00014246,2]
[420920399,1776727850893,-500.0,0.00014246,2]
[420920401,1776727850902,-1546.18,0.00014246,2]
[420920403,1776727850911,-7372.06,0.00014246,2]
[420920405,1776727850920,-500.0,0.00014246,2]
[420920407,1776727850930,-6200.61,0.00014246,2]
[420920409,1776727850940,-578.24,0.00014246,2]
[420920411,1776727850949,-585.09,0.00014246,2]
[420920413,1776727850959,-947.65,0.00014246,2]
[420920415,1776727850968,-500.0,0.00014246,2]
[420920417,1776727850977,-500.0,0.00014246,2]
[420920419,1776727850986,-500.0,0.00014246,2]
[420920421,1776727850996,-500.0,0.00014246,2]
[420920423,1776727851005,-500.0,0.00014246,2]
[420920425,1776727851015,-500.0,0.00014246,2]
[420920427,1776727851024,-500.0,0.00014246,2]
[420920429,1776727851034,-755.07,0.00014246,2]
[420920431,1776727851044,-500.0,0.00014246,2]
[420920433,1776727851053,-500.0,0.00014246,2]
[420920435,1776727851063,-500.0,0.00014246,2]
[420920437,1776727851074,-1858.23,0.00014246,2]
[420920439,1776727851083,-736.57,0.00014246,2]
[420920441,1776727851093,-500.0,0.00014246,2]
[420920443,1776727851103,-683.84,0.00014246,2]
[420920445,1776727851112,-500.0,0.00014246,2]
[420920447,1776727851122,-3391.67,0.00014246,2]
[420920449,1776727851131,-2845.63,0.00014246,2]
[420920451,1776727851140,-942.56,0.00014246,2]
[420920454,1776727851150,-500.0,0.00014246,2]
[420920456,1776727851160,-500.0,0.00014246,2]
[420920458,1776727851169,-500.0,0.00014246,2]
[420920459,1776727851178,-931.87,0.00014246,2]
[420920460,1776727851187,-1468.68,0.00014246,2]
[420920461,1776727851197,-1208.98,0.00014246,2]
[420920463,1776727851207,-909.52,0.00014246,2]
[420920465,1776727851216,-500.0,0.00014246,2]
[420920467,1776727851225,-500.0,0.00014246,2]
[420920469,1776727851234,-500.0,0.00014246,2]
[420920472,1776727851244,-634.37,0.00014246,2]
[420920473,1776727851254,-500.0,0.00014246,2]
[420920475,1776727851263,-500.0,0.00014246,2]
[420920476,1776727851273,-1393.62,0.00014246,2]
[420920478,1776727851282,-1631.25,0.00014246,2]
[420920479,1776727851292,-1034.79,0.00014246,2]
[420920480,1776727851301,-5412.07,0.00014246,2]
[420920481,1776727851310,-1333.09,0.00014246,2]
[420920482,1776727851320,-500.0,0.00014246,2]
[420920483,1776727851330,-500.0,0.00014246,2]
[420920484,1776727851339,-1055.62,0.00014246,2]
[420920485,1776727851349,-2738.88,0.00014246,2]
[420920486,1776727851358,-500.0,0.00014246,2]
[420920487,1776727851368,-2731.89,0.00014246,2]
[420920488,1776727851377,-500.0,0.00014246,2]
[420920489,1776727851387,-2600.62,0.00014246,2]
[420920490,1776727851396,-2254.44,0.00014246,2]
[420920491,1776727851405,-500.0,0.00014246,2]
[420920492,1776727851415,-2088.86,0.00014246,2]
[420920493,1776727851424,-3845.39,0.00014246,2]
[420920494,1776727851434,-750.4,0.00014246,2]
[420920495,1776727851443,-2809.13,0.00014246,2]
[420920496,1776727851453,-500.0,0.00014246,2]
[420920497,1776727851462,-5431.02,0.00014246,2]
[420920498,1776727851471,-500.0,0.00014246,2]
[420920499,1776727851481,-500.0,0.00014246,2]
[420920500,1776727851490,-500.0,0.00014246,2]
[420920501,1776727851500,-844.1,0.00014246,2]
[420920502,1776727851509,-764.76,0.00014246,2]
[420920503,1776727851519,-500.0,0.00014246,2]
[420920504,1776727851528,-628.08,0.00014246,2]
[420920505,1776727851538,-2080.85,0.00014246,2]
[420920506,1776727851547,-2269.79,0.00014246,2]
[420920507,1776727851556,-5859.1,0.00014246,2]
[420920508,1776727851566,-500.0,0.00014246,2]
[420920509,1776727851575,-500.0,0.00014246,2]
[420920510,1776727851584,-500.0,0.00014246,2]
[420920511,1776727851594,-4245.16,0.00014246,2]
[420920512,1776727851603,-701.39,0.00014246,2]
[420920513,1776727851612,-915.33,0.00014246,2]
[420920514,1776727851622,-2092.51,0.00014246,2]
[420920515,1776727851631,-3796.29,0.00014246,2]
[420920516,1776727851640,-500.0,0.00014246,2]
[420920517,1776727851649,-23822.54,0.00014246,2]
[420920518,1776727851658,-500.0,0.00014246,2]
[420920519,1776727851667,-1937.17,0.00014246,2]
[420920520,1776727851677,-528.23,0.00014246,2]
[420920521,1776727851687,-939.33,0.00014246,2]
[420920522,1776727851696,-519.24,0.00014246,2]
[420920523,1776727851706,-500.0,0.00014246,2]
[420920524,1776727851715,-500.0,0.00014246,2]
[420920525,1776727851725,-1690.89,0.00014246,2]
[420920526,1776727851735,-3778.88,0.00014246,2]
[420920527,1776727851745,-1209.507,0.00014246,2]
[420920528,1776727851755,-1190.0,0.00014247,2]
[420920529,1776727851764,-500.0,0.00014251,2]
[420920530,1776727851774,-500.95495457,0.00014251,2]
[420920531,1776727851783,-500.0,0.00014251,2]
[420920532,1776727851793,-155.0,0.00014278,2]
[420920533,1776727851803,-2487.15318209,0.00014294,2]
[420920534,1776727851812,-1906.85685527,0.000143,2]
[420920535,1776727851822,-155.0,0.0001433,2]
[420920536,1776727851831,-596.06065418,0.00014336,2]
[420920537,1776727851841,-500.0,0.00014336,2]
[420920538,1776727851850,-500.0,0.00014336,2]
[420920539,1776727851859,-500.0,0.00014336,2]
[420920540,1776727851869,-155.0,0.00014383,2]
[420920541,1776727851878,-821.0,0.00014386,2]
[420920542,1776727851888,-1906.85685527,0.000144,2]
[420920543,1776727851897,-155.0,0.00014436,2]
[420920544,1776727851907,-500.0,0.00014451,2]
[420920545,1776727851917,-307.93515167,0.00014451,2]
[420920546,1776727851927,-500.0,0.00014451,2]
[420920547,1776727851937,-500.0,0.00014451,2]
[420920548,1776727851946,-500.0,0.00014451,2]
[420920549,1776727851956,-500.0,0.00014451,2]
[420920550,1776727851969,-821.0,0.00014454,2]
[420920551,1776727851978,-500.0,0.00014488,2]
[420920552,1776727851987,-483.55420187,0.00014488,2]
[420920553,1776727851997,-155.0,0.00014488,2]
[420920554,1776727852007,-455.0,0.00014511,2]
[420920555,1776727852017,-189.19133525,0.00014519,2]
[420920556,1776727852026,-200.0,0.00014519,2]
[420920557,1776727852036,-150.32309376,0.0001452,2]
[420920558,1776727852047,-500.0,0.0001452,2]
[420920559,1776727852057,-500.0,0.0001452,2]
[420920560,1776727852067,-500.0,0.0001452,2]
[420920561,1776727852077,-500.0,0.0001452,2]
[420920562,1776727852086,-500.0,0.0001452,2]
[420920563,1776727852096,-500.0,0.0001452,2]
[420920564,1776727852106,-500.0,0.0001452,2]
[420920565,1776727852117,-500.0,0.0001452,2]
[420920566,1776727852126,-550.2,0.0001452,2]
[420920567,1776727852136,-500.0,0.0001452,2]
[420920568,1776727852146,-504.14,0.0001452,2]
[420920569,1776727852156,-500.0,0.0001452,2]
[420920570,1776727852165,-555.17,0.0001452,2]
[420920571,1776727852175,-500.0,0.0001452,2]
[420920572,1776727852185,-427.15374577,0.0001452,2]
[420920573,1776727852195,-500.0,0.0001452,2]
[420920574,1776727852204,-500.0,0.0001452,2]
[420920575,1776727852213,-500.0,0.0001452,2]
[420920576,1776727852223,-566.33,0.0001452,2]
[420920577,1776727852233,-500.0,0.0001452,2]
[420920578,1776727852243,-500.0,0.0001452,2]
[420920579,1776727852252,-500.0,0.0001452,2]
[420920580,1776727852262,-700.65,0.0001452,2]
[420920581,1776727852272,-663.16,0.0001452,2]
[420920582,1776727852282,-500.0,0.0001452,2]
[420920583,1776727852291,-500.0,0.0001452,2]
[420920584,1776727852301,-231.45264174,0.0001452,2]
[420920585,1776727852310,-1395.49,0.0001452,2]
[420920586,1776727852320,-500.0,0.0001452,2]
[420920587,1776727852330,-500.0,0.0001452,2]
[420920588,1776727852340,-500.0,0.0001452,2]
[420920589,1776727852349,-500.0,0.0001452,2]
[420920590,1776727852359,-915.61,0.0001452,2]
[420920591,1776727852369,-500.0,0.0001452,2]
[420920592,1776727852378,-500.0,0.0001452,2]
[420920593,1776727852388,-500.0,0.0001452,2]
[420920594,1776727852398,-500.0,0.0001452,2]
[420920595,1776727852408,-500.0,0.0001452,2]
[420920596,1776727852419,-500.0,0.0001452,2]
[420920597,1776727852428,-500.0,0.0001452,2]
[420920598,1776727852439,-500.0,0.0001452,2]
[420920599,1776727852449,-500.0,0.0001452,2]
[420920600,1776727852459,-500.0,0.0001452,2]
[420920601,1776727852468,-500.0,0.0001452,2]
[420920602,1776727852479,-1554.06,0.0001452,2]
[420920603,1776727852489,-500.0,0.0001452,2]
[420920604,1776727852499,-500.0,0.0001452,2]
[420920605,1776727852509,-582.68,0.0001452,2]
[420920606,1776727852519,-500.0,0.0001452,2]
[420920607,1776727852529,-5611.23,0.0001452,2]
[420920608,1776727852539,-500.0,0.0001452,2]
[420920609,1776727852550,-500.0,0.0001452,2]
[420920610,1776727852560,-500.0,0.0001452,2]
[420920611,1776727852569,-8913.81,0.0001452,2]
[420920612,1776727852579,-500.0,0.0001452,2]
[420920613,1776727852590,-500.0,0.0001452,2]
[420920614,1776727852599,-500.0,0.0001452,2]
[420920615,1776727852610,-500.0,0.0001452,2]
[420920616,1776727852620,-1546.18,0.0001452,2]
[420920617,1776727852629,-7372.06,0.0001452,2]
[420920618,1776727852639,-500.0,0.0001452,2]
[420920619,1776727852649,-6200.61,0.0001452,2]
[420920620,1776727852660,-578.24,0.0001452,2]
[420920621,1776727852670,-585.09,0.0001452,2]
[420920622,1776727852681,-947.65,0.0001452,2]
[420920623,1776727852691,-500.0,0.0001452,2]
[420920624,1776727852700,-500.0,0.0001452,2]
[420920625,1776727852711,-500.0,0.0001452,2]
[420920626,1776727852722,-500.0,0.0001452,2]
[420920627,1776727852732,-500.0,0.0001452,2]
[420920628,1776727852742,-500.0,0.0001452,2]
[420920629,1776727852752,-500.0,0.0001452,2]
[420920630,1776727852762,-755.07,0.0001452,2]
[420920631,1776727852772,-500.0,0.0001452,2]
[420920632,1776727852782,-500.0,0.0001452,2]
[420920633,1776727852793,-500.0,0.0001452,2]
[420920634,1776727852802,-1858.23,0.0001452,2]
[420920635,1776727852813,-736.57,0.0001452,2]
[420920636,1776727852823,-500.0,0.0001452,2]
[420920637,1776727852835,-500.0,0.0001452,2]
[420920638,1776727852844,-683.84,0.0001452,2]
[420920639,1776727852855,-3391.67,0.0001452,2]
[420920640,1776727852865,-2845.63,0.0001452,2]
[420920641,1776727852875,-942.56,0.0001452,2]
[420920642,1776727852886,-500.0,0.0001452,2]
[420920643,1776727852896,-500.0,0.0001452,2]
[420920644,1776727852907,-500.0,0.0001452,2]
[420920645,1776727852917,-931.87,0.0001452,2]
[420920646,1776727852927,-1468.68,0.0001452,2]
[420920647,1776727852938,-1208.98,0.0001452,2]
[420920648,1776727852948,-909.52,0.0001452,2]
[420920649,1776727852959,-500.0,0.0001452,2]
[420920650,1776727852969,-500.0,0.0001452,2]
[420920651,1776727852979,-500.0,0.0001452,2]
[420920652,1776727852990,-634.37,0.0001452,2]
[420920653,1776727853000,-500.0,0.0001452,2]
[420920654,1776727853010,-500.0,0.0001452,2]
[420920655,1776727853021,-1393.62,0.0001452,2]
[420920656,1776727853031,-1631.25,0.0001452,2]
[420920657,1776727853042,-1034.79,0.0001452,2]
[420920658,1776727853052,-5412.07,0.0001452,2]
[420920659,1776727853062,-1333.09,0.0001452,2]
[420920660,1776727853073,-500.0,0.0001452,2]
[420920661,1776727853083,-500.0,0.0001452,2]
[420920662,1776727853094,-1055.62,0.0001452,2]
[420920663,1776727853105,-2738.88,0.0001452,2]
[420920664,1776727853116,-500.0,0.0001452,2]
[420920665,1776727853127,-2731.89,0.0001452,2]
[420920666,1776727853137,-500.0,0.0001452,2]
[420920667,1776727853148,-2600.62,0.0001452,2]
[420920668,1776727853158,-2254.44,0.0001452,2]
[420920669,1776727853168,-500.0,0.0001452,2]
[420920670,1776727853179,-2088.86,0.0001452,2]
[420920671,1776727853364,-3845.39,0.0001452,2]
[420920672,1776727853375,-750.4,0.0001452,2]
[420920673,1776727853383,-2809.13,0.0001452,2]
[420920674,1776727853391,-560.5255386,0.0001452,2]
[420920675,1776727853400,-5431.02,0.0001452,2]
[420920676,1776727853409,-500.0,0.0001452,2]
[420920677,1776727853418,-500.0,0.0001452,2]
[420920678,1776727853428,-500.0,0.0001452,2]
[420920679,1776727853437,-844.1,0.0001452,2]
[420920680,1776727853446,-764.76,0.0001452,2]
[420920681,1776727853455,-500.0,0.0001452,2]
[420920682,1776727853464,-628.08,0.0001452,2]
[420920683,1776727853474,-2080.85,0.0001452,2]
[420920684,1776727853483,-2269.79,0.0001452,2]
[420920685,1776727853492,-5859.1,0.0001452,2]
[420920686,1776727853502,-500.0,0.0001452,2]
[420920687,1776727853511,-500.0,0.0001452,2]
[420920688,1776727853521,-500.0,0.0001452,2]
[420920689,1776727853530,-4245.16,0.0001452,2]
[420920690,1776727853540,-701.39,0.0001452,2]
[420920691,1776727853549,-915.33,0.0001452,2]
[420920692,1776727853558,-2092.51,0.0001452,2]
[420920693,1776727853568,-3796.29,0.0001452,2]
[420920694,1776727853578,-500.0,0.0001452,2]
[420920695,1776727853587,-23822.54,0.0001452,2]
[420920696,1776727853596,-588.27030096,0.0001452,2]
[420920697,1776727853605,-1937.17,0.0001452,2]
[420920698,1776727853614,-528.23,0.0001452,2]
[420920699,1776727853623,-939.33,0.0001452,2]
[420920700,1776727853633,-519.24,0.0001452,2]
[420920701,1776727853643,-500.0,0.0001452,2]
[420920702,1776727853652,-500.0,0.0001452,2]
[420920703,1776727853661,-1690.89,0.0001452,2]
[420920704,1776727853671,-3778.88,0.0001452,2]
[420920705,1776727853681,-1209.507,0.0001452,2]
[420920706,1776727853690,-6858.06511188,0.0001452,2]
[420920707,1776727853699,-1190.0,0.00014521,2]
[420920708,1776727853708,-250.0,0.00014521,2]
[420920709,1776727853718,-1000.0,0.00014521,2]
[420920710,1776727853727,-1000.0,0.00014521,2]
[420920711,1776727853736,-1000.0,0.00014521,2]
[420920712,1776727853746,-1000.0,0.00014521,2]
[420920713,1776727853755,-166.2861638,0.00014521,2]
[420920714,1776727853765,-155.0,0.00014541,2]
[420920715,1776727853774,-500.0,0.00014564,2]
[420920716,1776727853784,-500.0,0.00014564,2]
[420920717,1776727853793,-155.0,0.00014594,2]
[420920718,1776727853803,-1906.85685527,0.000146,2]
[420920719,1776727853813,-821.0,0.00014619,2]
[420920720,1776727853823,-155.0,0.00014646,2]
[420920721,1776727853832,-821.0,0.00014647,2]
[420920722,1776727853842,-577.007933,0.00014658,2]
[420920723,1776727853852,-2000.0,0.00014668,2]
[420920724,1776727853861,-2000.0,0.00014668,2]
[420920725,1776727853870,-2000.0,0.00014668,2]
[420920726,1776727853880,-2000.0,0.00014668,2]
[420920727,1776727853889,-2000.0,0.00014668,2]
[420920728,1776727853899,-2000.0,0.00014668,2]
[420920729,1776727853908,-2000.0,0.00014668,2]
[420920730,1776727853917,-2000.0,0.00014668,2]
[420920731,1776727853927,-2000.0,0.00014668,2]
[420920732,1776727853936,-2000.0,0.00014668,2]
[420920733,1776727853945,-2000.0,0.00014668,2]
[420920734,1776727853954,-2000.0,0.00014668,2]
[420920735,1776727853963,-2000.0,0.00014668,2]
[420920736,1776727853972,-2000.0,0.00014668,2]
[420920737,1776727853982,-2000.0,0.00014668,2]
[420920738,1776727853991,-812.74618957,0.00014668,2]
[420920739,1776727854285,-1075.08886253,0.00011208,2]
[420920740,1776727854297,-395.07987909,0.00011208,2]
[420920741,1776727854308,-429.42624312,0.00011208,2]
[420920742,1776727854319,-361.545,0.00011208,2]
[420920743,1776727854381,-2577.29493139,0.00011208,2]
[420920744,1776727854390,-502.25381043,0.00014668,2]
[420920745,1776727854399,-2217.35343693,0.00014694,2]
[420920746,1776727854410,-1407.01445481,0.00014694,2]
[420920747,1776727854421,-3654.16979638,0.00014694,2]
[420920748,1776727854433,-381.96055923,0.00014694,2]
[420920749,1776727854530,-1408.0,0.00012332,2]
[420920750,1776727854540,-423.65789526,0.00014694,2]
[420920751,1776727854549,-500.0,0.00014697,2]
[420920752,1776727854558,-500.0,0.00014697,2]
[420920753,1776727854568,-505.50736927,0.00014697,2]
[420920754,1776727854577,-155.0,0.00014699,2]
[420920755,1776727854586,-47721.80473547,0.000147,2]
[420920756,1776727854597,-1115.11630487,0.000147,2]
[420920757,1776727854682,-2329.18508868,0.000147,2]
[420920758,1776727854694,-586.36369892,0.000147,2]
[420920759,1776727854705,-1783.95619972,0.000147,2]
[420920760,1776727854717,-5479.3120059,0.000147,2]